fUST/lending_fUST_20250914
["ID","MTS","AMOUNT","RATE_DAILY","PERIOD"]
[385437663,1757849258141,500.0,0.00021916,2]
[385437664,1757849258181,500.0,0.00021916,2]
[385437665,1757849258217,500.0,0.00021916,2]
[385437666,1757849258251,466.06482411,0.00021916,2]
[385437667,1757849258282,500.0,0.00021916,2]
[385437668,1757849258314,500.0,0.00021916,2]
[385437669,1757849258344,500.0,0.00021916,2]
[385437670,1757849258372,493.93110998,0.00021917,2]
[385437671,1757849258402,500.0,0.00021916,2]
[385437672,1757849258446,500.0,0.00021916,2]
[385437673,1757849258475,480.0,0.00021917,2]
[385437674,1757849258519,500.0,0.00021916,2]
[385437675,1757849258550,500.0,0.00021916,2]
[385437676,1757849258581,500.0,0.00021916,2]
[385437677,1757849258645,500.0,0.00021916,2]
[385437678,1757849258678,500.0,0.00021916,2]
[385437679,1757849258716,500.0,0.00021916,2]
[385437680,1757849258897,480.0,0.00021917,2]
[385437682,1757849260176,480.0,0.00021917,2]
[385437683,1757849260443,480.0,0.00021917,2]
[385437685,1757849261209,480.0,0.00021917,2]
[385437686,1757849262442,480.0,0.00021917,2]
[385437687,1757849262937,522.93235906,0.00021917,2]
[385437689,1757849264745,643.87,0.00021917,2]
[385437690,1757849265286,579.75160293,0.00021917,2]
[385437691,1757849266148,339.35,0.00022,2]
[385437692,1757849267027,480.0,0.00021917,2]
[385437693,1757849267980,395.3,0.00021917,2]
[385437695,1757849268998,1647.95,0.00021917,2]
[385437698,1757849270871,480.0,0.00021917,2]
[385437701,1757849272437,500.0,0.00021916,2]
[385437702,1757849273079,1391.52,0.00021917,2]
[385437703,1757849273916,7862.23,0.00021917,2]
[385437705,1757849274384,420.0,0.00021917,2]
[385437706,1757849275476,480.0,0.00021917,2]
[385437707,1757849275805,480.0,0.00021917,2]
[385437709,1757849278290,556.98,0.00021917,2]
[385437711,1757849279463,709.09,0.00021917,2]
[385437712,1757849279877,480.0,0.00021917,2]
[385437714,1757849280868,259.59160489,0.00021916,2]
[385437715,1757849282178,480.0,0.00021917,2]
[385437716,1757849282391,480.0,0.00021917,2]
[385437717,1757849282555,480.0,0.00021917,2]
[385437718,1757849283380,480.0,0.00021917,2]
[385437720,1757849284437,480.0,0.00021917,2]
[385437721,1757849284467,480.0,0.00021917,2]
[385437723,1757849286502,857.1619623,0.00021947,2]
[385437724,1757849286640,2528.05,0.00021917,2]
[385437725,1757849286691,902.24,0.00021917,2]
[385437726,1757849286968,3635.87,0.00021917,2]
[385437728,1757849287376,30267.71,0.00021917,2]
[385437729,1757849287719,480.0,0.00021917,2]
[385437731,1757849289831,480.0,0.00021917,2]
[385437732,1757849289872,480.0,0.00021917,2]
[385437733,1757849289904,480.0,0.00021917,2]
[385437734,1757849290371,172.56818809,0.00021997,2]
[385437735,1757849292135,687.0,0.00021917,2]
[385437737,1757849294304,480.0,0.00021917,2]
[385437739,1757849294851,850.11,0.00021917,2]
[385437740,1757849295924,480.0,0.00021917,2]
[385437742,1757849297621,480.0,0.00021917,2]
[385437744,1757849298115,578.01573287,0.00021917,2]
[385437745,1757849299610,1525.53,0.00021917,2]
[385437746,1757849301771,2378.33048436,0.000199,2]
[385437747,1757849301837,2378.33048409,0.00021149,2]
[385437749,1757849302906,937.89,0.00021917,2]
[385437750,1757849303260,480.0,0.00021917,2]
[385437752,1757849305016,480.0,0.00021917,2]
[385437753,1757849305811,571.38,0.00021917,2]
[385437754,1757849305964,480.0,0.00021917,2]
[385437756,1757849307090,480.0,0.00021917,2]
[385437757,1757849307887,480.0,0.00021917,2]
[385437759,1757849308469,1018.41,0.00021917,2]
[385437760,1757849309212,480.0,0.00021917,2]
[385437762,1757849312098,480.0,0.00021917,2]
[385437763,1757849312797,230.24,0.00021917,2]
[385437765,1757849313444,480.0,0.00021917,2]
[385437767,1757849313827,1020.04,0.00021917,2]
[385437770,1757849316131,150.999999,0.0002,120]
[385437772,1757849316424,301.999999,0.00030243,120]
[385437775,1757849320627,173.981,0.0002123,2]
[385437776,1757849320868,426.36636921,0.00021917,2]
[385437777,1757849320941,480.0,0.00021917,2]
[385437780,1757849322272,908.53,0.00021917,2]
[385437781,1757849323306,1628.93,0.00021917,2]
[385437783,1757849325068,480.0,0.00021917,2]
[385437784,1757849325370,480.0,0.00021917,2]
[385437785,1757849326262,176.30827754,0.00021917,2]
[385437786,1757849326704,484.45374593,0.00021917,2]
[385437787,1757849327104,481.08466891,0.00021917,2]
[385437789,1757849327890,480.0,0.00021917,2]
[385437790,1757849328190,480.0,0.00021917,2]
[385437791,1757849328649,2994.88,0.00021917,2]
[385437793,1757849329415,480.0,0.00021917,2]
[385437794,1757849329515,480.0,0.00021917,2]
[385437795,1757849330039,480.0,0.00021917,2]
[385437796,1757849330182,480.0,0.00021917,2]
[385437799,1757849332573,4478.6,0.00021917,2]
[385437800,1757849333188,3290.93,0.00021917,2]
[385437801,1757849333427,1166.00248556,0.00021917,2]
[385437826,1757849418969,1512.0,0.00027397,120]
[385437856,1757849431993,-300.0,0.00021816,2]
[385437858,1757849432002,-300.0,0.00021816,2]
[385437859,1757849432012,-40.69884951,0.00021816,2]
[385437860,1757849432023,-259.30115049,0.00021816,2]
[385437862,1757849432032,-2000.0,0.00021817,3]
[385437864,1757849432042,-2000.0,0.00021817,3]
[385437865,1757849432052,-2000.0,0.00021817,3]
[385437867,1757849432061,-2000.0,0.00021817,3]
[385437868,1757849432078,-2000.0,0.00021817,3]
[385437869,1757849432087,-2000.0,0.00021817,3]
[385437871,1757849432102,-2000.0,0.00021817,3]
[385437872,1757849432111,-2000.0,0.00021817,3]
[385437874,1757849432121,-2000.0,0.00021817,3]
[385437876,1757849432132,-2000.0,0.00021817,3]
[385437878,1757849432142,-658.974,0.00021817,3]
[385437880,1757849432154,-1000.0,0.00021817,3]
[385437882,1757849432164,-1000.0,0.00021817,3]
[385437885,1757849432174,-1000.0,0.00021817,3]
[385437887,1757849432183,-1000.0,0.00021817,3]
[385437888,1757849432192,-1000.0,0.00021817,3]
[385437889,1757849432201,-1000.0,0.00021817,3]
[385437890,1757849432210,-1000.0,0.00021817,3]
[385437891,1757849432220,-1000.0,0.00021817,3]
[385437892,1757849432229,-1000.0,0.00021817,3]
[385437893,1757849432238,-1000.0,0.00021817,3]
[385437895,1757849432248,-4080.0,0.00021824,2]
[385437896,1757849432257,-24526.14260945,0.00021898,2]
[385437906,1757849437812,-314.87339918,0.00021816,2]
[385437907,1757849437822,-500.0,0.00021816,2]
[385437908,1757849437834,-500.0,0.00021816,2]
[385437909,1757849437843,-200.64552415,0.00021816,2]
[385437910,1757849437852,-500.0,0.00021816,2]
[385437911,1757849437862,-500.0,0.00021816,2]
[385437912,1757849437871,-505.65794665,0.00021816,2]
[385437913,1757849437880,-193.64436976,0.00021816,2]
[385437914,1757849437892,-306.35563024,0.00021816,2]
[385437915,1757849437901,-404.55993804,0.00021816,2]
[385437916,1757849437911,-500.0,0.00021816,2]
[385437917,1757849437921,-500.0,0.00021816,2]
[385437918,1757849437930,-500.0,0.00021816,2]
[385437919,1757849437940,-380.9078334,0.00021816,2]
[385437920,1757849437950,-500.0,0.00021816,2]
[385437921,1757849437959,-500.0,0.00021816,2]
[385437922,1757849437968,-257.70805327,0.00021897,2]
[385437923,1757849437977,-202.08443071,0.00021897,2]
[385437924,1757849437986,-500.0,0.00021897,2]
[385437925,1757849437995,-500.0,0.00021897,2]
[385437926,1757849438004,-223.4568372,0.00021897,2]
[385437927,1757849438013,-87389.59599867,0.00021898,2]
[385437928,1757849438022,-500.0,0.00021917,2]
[385437929,1757849438031,-420.20751444,0.00021917,2]
[385437930,1757849438040,-480.0,0.00021917,2]
[385437931,1757849438049,-480.0,0.00021917,2]
[385437932,1757849438058,-480.0,0.00021917,2]
[385437933,1757849438067,-480.0,0.00021917,2]
[385437934,1757849438076,-482.5942701,0.00021917,2]
[385437935,1757849438085,-1648.83,0.00021917,2]
[385437936,1757849438094,-1631.2,0.00021917,2]
[385437937,1757849438105,-480.0,0.00021917,2]
[385437938,1757849438115,-851.34,0.00021917,2]
[385437939,1757849438125,-1226.32,0.00021917,2]
[385437940,1757849438135,-2544.78,0.00021917,2]
[385437941,1757849438147,-480.0,0.00021917,2]
[385437942,1757849438155,-480.0,0.00021917,2]
[385437943,1757849438166,-480.0,0.00021917,2]
[385437944,1757849438175,-480.0,0.00021917,2]
[385437945,1757849438185,-480.0,0.00021917,2]
[385437946,1757849438194,-715.73,0.00021917,2]
[385437947,1757849438204,-480.0,0.00021917,2]
[385437948,1757849438213,-480.0,0.00021917,2]
[385437949,1757849438224,-559.17,0.00021917,2]
[385437950,1757849438234,-491.34048243,0.00021917,2]
[385437951,1757849438244,-480.0,0.00021917,2]
[385437952,1757849438253,-480.0,0.00021917,2]
[385437953,1757849438262,-480.0,0.00021917,2]
[385437954,1757849438272,-870.55,0.00021917,2]
[385437955,1757849438286,-481.60241852,0.00021917,2]
[385437956,1757849438296,-252.041302,0.00021917,2]
[385437957,1757849438305,-480.0,0.00021917,2]
[385437958,1757849438314,-528.38335315,0.00021917,2]
[385437959,1757849438324,-480.0,0.00021917,2]
[385437960,1757849438333,-2920.94,0.00021917,2]
[385437961,1757849438342,-557.08766036,0.00021917,2]
[385437962,1757849438352,-1005.43,0.00021917,2]
[385437963,1757849438361,-1269.66,0.00021917,2]
[385437964,1757849438370,-480.0,0.00021917,2]
[385437965,1757849438379,-480.0,0.00021917,2]
[385437966,1757849438388,-695.69,0.00021917,2]
[385437967,1757849438397,-480.94301996,0.00021917,2]
[385437968,1757849438406,-480.0,0.00021917,2]
[385437969,1757849438415,-4902.02,0.00021917,2]
[385437970,1757849438425,-686.23,0.00021917,2]
[385437971,1757849438434,-490.88198072,0.00021917,2]
[385437972,1757849438443,-482.83658517,0.00021917,2]
[385437973,1757849438453,-480.0,0.00021917,2]
[385437974,1757849438462,-1686.11,0.00021917,2]
[385437975,1757849438472,-480.0,0.00021917,2]
[385437976,1757849438482,-480.0,0.00021917,2]
[385437977,1757849438491,-15187.95,0.00021917,2]
[385437978,1757849438500,-556.8,0.00021917,2]
[385437979,1757849438509,-500.0,0.00021917,2]
[385437980,1757849438519,-480.0,0.00021917,2]
[385437981,1757849438528,-1178.79,0.00021917,2]
[385437982,1757849438538,-480.0,0.00021917,2]
[385437983,1757849438547,-480.0,0.00021917,2]
[385437984,1757849438556,-480.0,0.00021917,2]
[385437985,1757849438565,-480.0,0.00021917,2]
[385437986,1757849438574,-480.0,0.00021917,2]
[385437987,1757849438583,-1141.81,0.00021917,2]
[385437988,1757849438592,-2458.83,0.00021917,2]
[385437989,1757849438602,-2353.89,0.00021917,2]
[385437990,1757849438611,-480.0,0.00021917,2]
[385437991,1757849438620,-480.0,0.00021917,2]
[385437992,1757849438630,-480.0,0.00021917,2]
[385437993,1757849438639,-480.0,0.00021917,2]
[385437994,1757849438648,-480.0,0.00021917,2]
[385437995,1757849438657,-3935.12,0.00021917,2]
[385437996,1757849438667,-480.38562781,0.00021917,2]
[385437997,1757849438675,-480.0,0.00021917,2]
[385437998,1757849438685,-1096.2,0.00021917,2]
[385437999,1757849438694,-480.0,0.00021917,2]
[385438000,1757849438703,-480.0,0.00021917,2]
[385438001,1757849438712,-480.0,0.00021917,2]
[385438002,1757849438721,-976.0,0.00021998,2]
[385438003,1757849438730,-410.0,0.00021998,2]
[385438004,1757849438739,-301.64,0.00022,2]
[385438005,1757849438748,-296.29073495,0.00022023,2]
[385438006,1757849438758,-160.0,0.0002209,2]
[385438007,1757849438767,-160.0,0.0002209,2]
[385438008,1757849438776,-160.0,0.0002209,2]
[385438009,1757849438785,-160.0,0.0002209,2]
[385438010,1757849438794,-160.0,0.0002209,2]
[385438011,1757849438803,-160.0,0.0002209,2]
[385438012,1757849438812,-847.27885267,0.0002209,2]
[385438013,1757849438821,-531.23217266,0.0002209,2]
[385438014,1757849438831,-217.77739939,0.00022091,2]
[385438015,1757849438840,-233.1999649,0.00022091,2]
[385438016,1757849438849,-296.29073495,0.00022091,2]
[385438017,1757849438858,-2023.58386612,0.00022091,2]
[385438018,1757849438867,-151.0,0.000221,10]
[385438019,1757849438877,-480.0,0.00022172,3]
[385438020,1757849438887,-1150.79,0.00022172,3]
[385438021,1757849438896,-480.0,0.00022172,3]
[385438022,1757849438905,-7865.85,0.00022172,3]
[385438023,1757849438915,-480.0,0.00022172,3]
[385438024,1757849438924,-724.83,0.00022172,3]
[385438025,1757849438934,-1267.1,0.00022172,3]
[385438026,1757849438943,-480.0,0.00022172,3]
[385438027,1757849438952,-480.0,0.00022172,3]
[385438028,1757849438961,-480.0,0.00022172,3]
[385438029,1757849438970,-480.0,0.00022172,3]
[385438030,1757849438979,-483.56533578,0.00022172,3]
[385438031,1757849438988,-3138.11,0.00022172,3]
[385438032,1757849438997,-996.42,0.00022172,3]
[385438033,1757849439008,-896.33,0.00022172,3]
[385438034,1757849439018,-480.0,0.00022172,2]
[385438035,1757849439028,-480.0,0.00022172,3]
[385438036,1757849439038,-428.78349147,0.00022172,3]
[385438037,1757849439047,-480.0,0.00022172,3]
[385438038,1757849439056,-480.0,0.00022172,3]
[385438039,1757849439066,-168.0,0.00022172,2]
[385438040,1757849439076,-500.0,0.00022173,2]
[385438041,1757849439086,-500.0,0.00022173,2]
[385438042,1757849439096,-500.0,0.00022173,2]
[385438043,1757849439106,-500.54421837,0.00022173,2]
[385438044,1757849439114,-500.0,0.00022173,2]
[385438045,1757849439123,-500.0,0.00022173,2]
[385438046,1757849439133,-15742.23557208,0.00022173,2]
[385438047,1757849439142,-500.0,0.00022173,2]
[385438048,1757849439151,-500.0,0.00022173,2]
[385438049,1757849439160,-500.33687335,0.00022173,2]
[385438050,1757849439169,-296.4694376,0.00022173,2]
[385438051,1757849439178,-500.0,0.00022173,2]
[385438052,1757849439187,-500.0,0.00022173,2]
[385438053,1757849439196,-500.0,0.00022173,2]
[385438054,1757849439206,-500.0,0.00022173,2]
[385438055,1757849439215,-500.0,0.00022173,2]
[385438056,1757849439224,-500.0,0.00022173,2]
[385438057,1757849439234,-500.0,0.00022173,2]
[385438058,1757849439243,-502.72568923,0.00022173,2]
[385438059,1757849439255,-472.21422934,0.00022173,2]
[385438060,1757849439264,-459.03,0.00022181,3]
[385438061,1757849439277,-688.58,0.00022181,3]
[385438062,1757849439289,-261.1,0.00022181,3]
[385438063,1757849439299,-783.3,0.00022181,3]
[385438064,1757849439309,-480.0,0.00022191,3]
[385438065,1757849439319,-480.0,0.00022191,3]
[385438066,1757849439328,-480.0,0.00022191,3]
[385438067,1757849439338,-480.0,0.00022191,3]
[385438069,1757849439348,-480.0,0.00022191,3]
[385438070,1757849439358,-480.0,0.00022191,3]
[385438071,1757849439368,-482.70033551,0.00022191,3]
[385438072,1757849439377,-483.12566247,0.00022191,3]
[385438073,1757849439387,-486.29317502,0.00022191,3]
[385438074,1757849439397,-154.85706,0.00022191,7]
[385438075,1757849439406,-480.0,0.00022191,3]
[385438076,1757849439414,-480.0,0.00022191,3]
[385438077,1757849439424,-480.0,0.00022191,3]
[385438078,1757849439433,-152.073548,0.00022191,7]
[385438079,1757849439444,-151.0,0.00022191,7]
[385438080,1757849439453,-151.0,0.00022191,7]
[385438082,1757849439462,-480.0,0.00022191,3]
[385438083,1757849439472,-480.0,0.00022191,3]
[385438084,1757849439481,-480.0,0.00022191,3]
[385438085,1757849439491,-153.990148,0.00022191,7]
[385438086,1757849439500,-417.01339898,0.00022191,3]
[385438088,1757849439509,-533.93273446,0.00022191,3]
[385438090,1757849439518,-480.0,0.00022191,3]
[385438091,1757849439528,-391.42073882,0.00022191,3]
[385438093,1757849439537,-480.0,0.00022191,3]
[385438095,1757849439547,-482.0328333,0.00022191,3]
[385438096,1757849439557,-480.0,0.00022191,3]
[385438098,1757849439566,-480.0,0.00022191,3]
[385438099,1757849439574,-480.0,0.00022191,3]
[385438100,1757849439584,-480.0,0.00022191,3]
[385438101,1757849439593,-480.0,0.00022191,3]
[385438102,1757849439602,-480.0,0.00022191,3]
[385438103,1757849439612,-480.0,0.00022191,3]
[385438104,1757849439621,-480.0,0.00022191,3]
[385438105,1757849439631,-422.29586882,0.00022191,3]
[385438106,1757849439640,-480.0,0.00022191,3]
[385438107,1757849439650,-589.15,0.00022191,3]
[385438108,1757849439659,-480.0,0.00022191,3]
[385438109,1757849439668,-480.0,0.00022191,3]
[385438110,1757849439677,-480.0,0.00022191,3]
[385438111,1757849439686,-151.0,0.00022191,7]
[385438112,1757849439695,-480.0,0.00022191,3]
[385438113,1757849439705,-485.82138291,0.00022191,3]
[385438114,1757849439714,-480.0,0.00022191,3]
[385438115,1757849439724,-480.0,0.00022191,3]
[385438116,1757849439733,-480.0,0.00022191,3]
[385438117,1757849439742,-480.0,0.00022191,3]
[385438118,1757849439752,-480.0,0.00022191,3]
[385438119,1757849439761,-486.25437665,0.00022191,3]
[385438120,1757849439770,-480.0,0.00022191,3]
[385438121,1757849439779,-480.0,0.00022191,3]
[385438122,1757849439789,-480.0,0.00022191,3]
[385438123,1757849439798,-480.0,0.00022191,3]
[385438124,1757849439951,-488.90367269,0.00022191,3]
[385438125,1757849439960,-480.0,0.00022191,3]
[385438126,1757849439969,-480.0,0.00022191,3]
[385438128,1757849439978,-2014.86,0.00022191,3]
[385438130,1757849439987,-916.13,0.00022191,3]
[385438131,1757849439996,-480.0,0.00022191,3]
[385438132,1757849440006,-151.0,0.00022191,7]
[385438133,1757849440015,-480.0,0.00022191,3]
[385438134,1757849440024,-480.0,0.00022191,3]
[385438135,1757849440033,-857.5,0.00022191,3]
[385438136,1757849440042,-480.0,0.00022191,3]
[385438137,1757849440051,-480.0,0.00022191,3]
[385438138,1757849440060,-480.0,0.00022191,3]
[385438139,1757849440069,-1131.09,0.00022191,3]
[385438140,1757849440078,-480.0,0.00022191,3]
[385438141,1757849440087,-772.0,0.00022191,3]
[385438142,1757849440097,-480.0,0.00022191,3]
[385438143,1757849440106,-480.0,0.00022191,3]
[385438144,1757849440116,-486.26986262,0.00022191,3]
[385438145,1757849440125,-480.0,0.00022191,3]
[385438146,1757849440135,-480.0,0.00022191,3]
[385438147,1757849440145,-480.0,0.00022191,3]
[385438148,1757849440154,-480.0,0.00022191,3]
[385438149,1757849440164,-480.0,0.00022191,3]
[385438150,1757849440174,-480.0,0.00022191,2]
[385438151,1757849440184,-151.0,0.00022191,7]
[385438152,1757849440193,-480.0,0.00022191,3]
[385438153,1757849440203,-480.0,0.00022191,3]
[385438154,1757849440212,-480.0,0.00022191,3]
[385438155,1757849440222,-480.0,0.00022191,3]
[385438156,1757849440256,-480.0,0.00022191,3]
[385438157,1757849440269,-193.47136876,0.00022191,3]
[385438158,1757849440286,-480.0,0.00022191,3]
[385438159,1757849440312,-480.0,0.00022191,3]
[385438160,1757849440323,-508.27,0.00022191,3]
[385438161,1757849440332,-617.84981511,0.00022191,3]
[385438162,1757849440343,-499.4,0.00022191,3]
[385438163,1757849440354,-151.0,0.00022191,7]
[385438164,1757849440363,-151.0,0.00022191,7]
[385438165,1757849440372,-480.0,0.00022191,3]
[385438166,1757849440382,-2360.45,0.00022191,3]
[385438167,1757849440392,-1140.6,0.00022191,3]
[385438168,1757849440402,-480.0,0.00022191,3]
[385438169,1757849440412,-480.0,0.00022191,3]
[385438170,1757849440421,-500.89758025,0.00022191,3]
[385438171,1757849440431,-480.0,0.00022191,3]
[385438172,1757849440441,-480.0,0.00022191,3]
[385438173,1757849440450,-1179.79,0.00022191,3]
[385438174,1757849440460,-480.0,0.00022191,3]
[385438175,1757849440469,-480.0,0.00022191,3]
[385438176,1757849440478,-151.0,0.00022191,7]
[385438177,1757849440488,-151.0,0.00022191,7]
[385438178,1757849440497,-903.98,0.00022191,3]
[385438179,1757849440507,-480.0,0.00022191,3]
[385438180,1757849440516,-480.0,0.00022191,3]
[385438181,1757849440525,-795.28,0.00022191,3]
[385438182,1757849440535,-480.0,0.00022191,3]
[385438183,1757849440545,-480.0,0.00022191,3]
[385438184,1757849440555,-480.0,0.00022191,3]
[385438185,1757849440564,-480.0,0.00022191,3]
[385438186,1757849440573,-480.0,0.00022191,3]
[385438187,1757849440582,-480.0,0.00022191,3]
[385438188,1757849440592,-480.0,0.00022191,3]
[385438189,1757849440602,-153.772262,0.00022191,7]
[385438190,1757849440611,-480.0,0.00022191,3]
[385438191,1757849440620,-480.0,0.00022191,3]
[385438192,1757849440630,-659.31,0.00022191,3]
[385438193,1757849440639,-480.0,0.00022191,3]
[385438194,1757849440649,-480.0,0.00022191,3]
[385438195,1757849440659,-480.0,0.00022191,3]
[385438196,1757849440669,-480.0,0.00022191,3]
[385438197,1757849440678,-480.0,0.00022191,3]
[385438198,1757849440688,-480.0,0.00022191,3]
[385438199,1757849440698,-1106.17,0.00022191,3]
[385438200,1757849440708,-480.0,0.00022191,3]
[385438201,1757849440717,-480.0,0.00022191,3]
[385438202,1757849440727,-151.0,0.00022191,7]
[385438203,1757849440736,-213.82,0.00022191,7]
[385438204,1757849440745,-480.0,0.00022191,3]
[385438205,1757849440755,-500.0,0.00022191,3]
[385438206,1757849440765,-480.0,0.00022191,3]
[385438207,1757849440774,-480.0,0.00022191,3]
[385438208,1757849440783,-480.0,0.00022191,3]
[385438209,1757849440792,-534.07,0.00022191,3]
[385438210,1757849440802,-480.0,0.00022191,3]
[385438211,1757849440811,-369.4033403,0.00022191,3]
[385438212,1757849440820,-480.0,0.00022191,3]
[385438213,1757849440829,-480.0,0.00022191,3]
[385438214,1757849440839,-480.0,0.00022191,3]
[385438215,1757849440849,-959.31,0.00022191,3]
[385438216,1757849440858,-480.0,0.00022191,3]
[385438218,1757849440868,-480.0,0.00022191,3]
[385438220,1757849440877,-480.0,0.00022191,3]
[385438221,1757849440886,-480.0,0.00022191,3]
[385438223,1757849440895,-151.0,0.00022191,7]
[385438224,1757849440905,-610.0,0.00022191,3]
[385438225,1757849440914,-480.0,0.00022191,3]
[385438227,1757849440923,-480.0,0.00022191,3]
[385438229,1757849440932,-471.31871646,0.00022191,3]
[385438230,1757849440941,-480.0,0.00022191,3]
[385438232,1757849440950,-681.73,0.00022191,3]
[385438233,1757849440959,-480.0,0.00022191,3]
[385438235,1757849440968,-480.0,0.00022191,3]
[385438237,1757849440977,-480.0,0.00022191,3]
[385438239,1757849440987,-480.0,0.00022191,3]
[385438241,1757849440996,-1091.4,0.00022191,3]
[385438243,1757849441006,-480.0,0.00022191,3]
[385438245,1757849441015,-480.0,0.00022191,3]
[385438247,1757849441024,-480.0,0.00022191,3]
[385438249,1757849441033,-480.0,0.00022191,3]
[385438251,1757849441042,-480.0,0.00022191,3]
[385438253,1757849441051,-369.26,0.00022191,3]
[385438255,1757849441060,-235.55,0.00022191,3]
[385438257,1757849441070,-1000.0,0.00022191,3]
[385438259,1757849441079,-480.0,0.00022191,3]
[385438261,1757849441090,-480.0,0.00022191,3]
[385438263,1757849441099,-480.0,0.00022191,3]
[385438265,1757849441108,-1036.19,0.00022191,3]
[385438267,1757849441117,-480.0,0.00022191,3]
[385438269,1757849441127,-480.0,0.00022191,3]
[385438271,1757849441135,-480.0,0.00022191,3]
[385438273,1757849441146,-651.18,0.00022191,3]
[385438275,1757849441155,-480.0,0.00022191,3]
[385438277,1757849441164,-480.0,0.00022191,3]
[385438279,1757849441173,-612.98,0.00022191,3]
[385438280,1757849441182,-380.02521675,0.00022191,3]
[385438282,1757849441191,-480.0,0.00022191,3]
[385438284,1757849441201,-480.0,0.00022191,3]
[385438286,1757849441209,-480.0,0.00022191,3]
[385438287,1757849441218,-1119.03,0.00022191,3]
[385438288,1757849441228,-1237.67,0.00022191,3]
[385438289,1757849441237,-482.9095256,0.00022191,3]
[385438290,1757849441246,-480.0,0.00022191,3]
[385438291,1757849441255,-480.0,0.00022191,3]
[385438292,1757849441264,-480.0,0.00022191,3]
[385438293,1757849441274,-480.0,0.00022191,3]
[385438294,1757849441288,-480.0,0.00022191,3]
[385438295,1757849441297,-490.46318283,0.00022191,3]
[385438296,1757849441307,-1374.83,0.00022191,3]
[385438297,1757849441316,-480.0,0.00022191,3]
[385438298,1757849441327,-492.13407604,0.00022191,3]
[385438299,1757849441337,-578.38,0.00022191,3]
[385438300,1757849441346,-480.0,0.00022191,3]
[385438301,1757849441357,-480.0,0.00022191,3]
[385438302,1757849441366,-480.0,0.00022191,3]
[385438303,1757849441375,-480.0,0.00022191,3]
[385438304,1757849441384,-480.0,0.00022191,3]
[385438305,1757849441394,-480.0,0.00022191,3]
[385438306,1757849441403,-480.0,0.00022191,3]
[385438307,1757849441412,-480.0,0.00022191,3]
[385438308,1757849441421,-480.0,0.00022191,3]
[385438309,1757849441431,-480.0,0.00022191,3]
[385438310,1757849441442,-703.08,0.00022191,3]
[385438311,1757849441451,-585.51,0.00022191,3]
[385438312,1757849441460,-480.0,0.00022191,3]
[385438313,1757849441469,-480.0,0.00022191,3]
[385438314,1757849441477,-388.12424925,0.00022191,3]
[385438315,1757849441487,-480.0,0.00022191,3]
[385438316,1757849441495,-480.0,0.00022191,3]
[385438317,1757849441504,-480.0,0.00022191,3]
[385438318,1757849441513,-766.53,0.00022191,3]